Workbook

Sheet алг.Джонсона
A1: 1. | H1: Первая оценка: | J1: Вторая оценка: | M1: 2. | T1: Первая оценка: | V1: Вторая оценка:
A2: 1.1. | B2: 14 | C2: 4 | D2: -2 | E2: =B10 -> 4 | F2: =C10 -> 4 | H2: =B2 -> 14 | J2: =E2 -> 4 | M2: 2.1. | N2: 19 | O2: 18 | Q2: =N22 -> 4 | R2: =O22 -> 19 | T2: =N2 -> 19 | V2: =Q2 -> 4
B3: 11 | C3: 7 | E3: =B19 -> 6 | F3: =C19 -> 10 | H3: =H2+B3-C2 -> 21 | J3: =J2+E3-F2 -> 6 | N3: 14 | O3: 2 | Q3: =N27 -> 6 | R3: =O27 -> 8 | T3: =T2+N3-O2 -> 15 | V3: =V2+Q3-R2 -> -9
B4: 20 | C4: 6 | E4: =B23 -> 7 | F4: =C23 -> 17 | H4: 34 | J4: 3 | N4: 19 | O4: 1 | P4: -1 | Q4: =N29 -> 7 | R4: =O29 -> 20 | T4: 32 | V4: -10
B5: 20 | C5: 7 | E5: =B27 -> 11 | F5: =C27 -> 12 | H5: 48 | J5: -3 | N5: 6 | O5: 8 | Q5: =N28 -> 11 | R5: =O28 -> 11 | T5: 37 | V5: -19
B6: 7 | C6: 17 | E6: =B28 -> 14 | F6: =C28 -> 19 | H6: 48 | J6: -1 | N6: 11 | O6: 11 | Q6: =N32 -> 19 | R6: =O32 -> 18 | T6: 40 | V6: -11
B7: 11 | C7: 12 | E7: =B21 -> 11 | F7: =C21 -> 7 | H7: 42 | J7: -9 | N7: 7 | O7: 3 | Q7: =N33 -> 18 | R7: =O33 -> 12 | T7: 36 | V7: -11
B8: 14 | C8: 19 | E8: =B22 -> 20 | F8: =C22 -> 7 | H8: 44 | J8: 4 | N8: 16 | O8: 4 | Q8: =N20 -> 11 | R8: =O20 -> 4 | T8: 49 | V8: -12
B9: 18 | C9: 4 | D9: -1 | E9: =B14 -> 20 | F9: =C14 -> 6 | H9: 43 | J9: 17 | N9: 11 | O9: 4 | Q9: =N19 -> 16 | R9: =O19 -> 4 | T9: 56 | V9: 0
B10: 4 | C10: 4 | D10: 1 | E10: =B2 -> 14 | F10: =C2 -> 4 | H10: 43 | J10: 25 | N10: 7 | O10: 20 | Q10: =N18 -> 7 | R10: =O18 -> 3 | T10: 59 | V10: 3
B11: 6 | C11: 10 | E11: =B9 -> 18 | F11: =C9 -> 4 | H11: 45 | J11: 39 | N11: 4 | O11: 19 | Q11: =N15 -> 14 | R11: =O15 -> 2 | T11: 43 | V11: 14
N12: 18 | O12: 12 | Q12: =N4 -> 19 | R12: =O4 -> 1 | T12: 42 | V12: 31
A13: 1.2. | B13: 11 | C13: 7 | H13: Разница: | I13: =MAX(H2:H11)-MAX(J2:J11) -> 9
B14: 20 | C14: 6 | D14: -1 | M14: 2.2. | N14: 19 | O14: 18 | T14: Разница: | U14: =MAX(T2:T12)-MAX(V2:V12) -> 28
B15: 20 | C15: 7 | N15: 14 | O15: 2 | P15: -1
B16: 7 | C16: 17 | N16: 6 | O16: 8
B17: 11 | C17: 12 | N17: 11 | O17: 11
B18: 14 | C18: 19 | N18: 7 | O18: 3 | P18: -2
B19: 6 | C19: 10 | D19: 1 | N19: 16 | O19: 4 | P19: -3
N20: 11 | O20: 4 | P20: -4
A21: 1.3. | B21: 11 | C21: 7 | D21: -2 | N21: 7 | O21: 20
B22: 20 | C22: 7 | D22: -1 | N22: 4 | O22: 19 | P22: 1
B23: 7 | C23: 17 | D23: 1 | N23: 18 | O23: 12
B24: 11 | C24: 12
B25: 14 | C25: 19
M26: 2.3. | N26: 19 | O26: 18
A27: 1.4. | B27: 11 | C27: 12 | D27: 1 | N27: 6 | O27: 8 | P27: 1
B28: 14 | C28: 19 | N28: 11 | O28: 11 | P28: 3
N29: 7 | O29: 20 | P29: 2
N30: 18 | O30: 12
M32: 2.4. | N32: =N26 -> 19 | O32: =O26 -> 18
N33: =N30 -> 18 | O33: =O30 -> 12 | P33: -1
H34: Первая оценка: | J34: Вторая оценка:
A35: 3. | B35: 11 | C35: 10 | E35: =B37 -> 1 | F35: =C37 -> 5 | H35: =B35 -> 11 | J35: =E35 -> 1
A36: 3.1. | B36: 9 | C36: 10 | E36: =B38 -> 7 | F36: =C38 -> 15 | H36: =H35+B36-C35 -> 10 | J36: =J35+E36-F35 -> 3
B37: 1 | C37: 5 | D37: 1 | E37: =B46 -> 9 | F37: =C46 -> 10 | H37: =H36+B37-C36 -> 1 | J37: =J36+E37-F36 -> -3
B38: 7 | C38: 15 | D38: 2 | E38: =B48 -> 10 | F38: =C48 -> 14 | H38: 3 | J38: =J37+E38-F37 -> -3
B39: 20 | C39: 20 | E39: =B51 -> 20 | F39: =C51 -> 20 | H39: 8 | J39: 3
B40: 16 | C40: 7 | D40: -2 | E40: =B52 -> 19 | F40: =C52 -> 18 | H40: 4 | J40: 2
B41: 10 | C41: 14 | E41: =B45 -> 11 | F41: =C45 -> 10 | H41: 7 | J41: -5
B42: 18 | C42: 6 | D42: -1 | E42: =B40 -> 16 | F42: =C40 -> 7 | H42: 11 | J42: 1
B43: 19 | C43: 18 | E43: =B42 -> 18 | F43: =C42 -> 6 | H43: 24 | J43: 12
A45: 3.2. | B45: =B35 -> 11 | C45: =C35 -> 10 | D45: -1 | H45: Разница: | I45: =MAX(H35:H43)-MAX(J35:J43) -> 12
B46: =B36 -> 9 | C46: =C36 -> 10 | D46: 1
B47: =B39 -> 20 | C47: =C39 -> 20
B48: =B41 -> 10 | C48: =C41 -> 14 | D48: 2
B49: =B43 -> 19 | C49: =C43 -> 18
A51: 3.3. | B51: =B47 -> 20 | C51: =C47 -> 20
B52: =B49 -> 19 | C52: =C49 -> 18 | D52: -1

Sheet хищние-жертва
A4: жертвы | B4: v(t)=(a-b x(t))x(t)-cx(t)y(t)
A5: x(t)
A6: x(0) | B6: 600 | D6: начальная численность
A7: a | B7: =B15/100 -> 0.06 | D7: коэффициент естественного прироста популяции жертв
A8: b | B8: =C15/100000 -> 1e-05 | D8: коэффициент смертности жертв от внутривидовой конкуренции
A9: c | B9: =D15/1000 -> 0.001 | D9: коэффициент смертности жертв от хищников
A10: хищники | B10: w(t)=-dy(t)+fx(t)y(t)
A11: y(t)
A12: y(0) | B12: 60 | D12: начальная численность
A13: d | B13: =E15/100 -> 0.13 | D13: коэффициент смертности хищников
A14: f | B14: =F15/10000 -> 0.0002 | D14: коэффициент, определяющий прирост численности хищников
B15: 6 | C15: 1 | D15: 1 | E15: 13 | F15: 2
A16: t | B16: x(t) | C16: y(t)
A17: 0 | B17: =B6 -> 600 | C17: =B12 -> 60
A18: =A17+1 -> 1 | B18: =B17+($B$7-$B$8*B17)*B17-$B$9*B17*C17 -> 596.4 | C18: =C17-$B$13*C17+$B$14*B17*C17 -> 59.4
A19: =A18+1 -> 2 | B19: =B18+($B$7-$B$8*B18)*B18-$B$9*B18*C18 -> 593.2009104 | C19: =C18-$B$13*C18+$B$14*B18*C18 -> 58.763232
A20: 3 | B20: 590.4156891 | C20: 58.09569238
A21: 4 | B21: 588.0541153 | C21: 57.40337402
A22: 5 | B22: 586.1229955 | C22: 56.69219347
A23: 6 | B23: 584.6263753 | C23: 55.96792797
A24: 7 | B24: 583.565751 | C24: 55.2361627
A25: 8 | B25: 582.9402734 | C25: 54.50224811
A26: 9 | B26: 582.7469408 | C26: 53.77126694
A27: 10 | B27: 582.980776 | C27: 53.0480105
A28: 11 | B28: 583.6349863 | C28: 52.3369632
A29: 12 | B29: 584.7011047 | C29: 51.64229454
A30: 13 | B30: 586.1691105 | C30: 50.96785758
A31: 14 | B31: 588.0275312 | C31: 50.31719285
A32: 15 | B32: 590.2635246 | C32: 49.69353671
A33: 16 | B33: 592.8629436 | C33: 49.09983337
A34: 17 | B34: 595.8103838 | C34: 48.53874938
A35: 18 | B35: 599.0892158 | C35: 48.01269014
A36: 19 | B36: 602.681605 | C36: 47.5238174
A37: 20 | B37: 606.5685196 | C37: 47.07406724
A38: 21 | B38: 610.7297298 | C38: 46.66516796
A39: 22 | B39: 615.1438001 | C39: 46.29865721
A40: 23 | B40: 619.7880772 | C40: 45.97589816
A41: 24 | B41: 624.6386758 | C41: 45.6980941
A42: 25 | B42: 629.6704646 | C42: 45.46630126
A43: 26 | B43: 634.8570565 | C43: 45.28143951
A44: 27 | B44: 640.1708036 | C44: 45.14430065
A45: 28 | B45: 645.582802 | C45: 45.05555421
A46: 29 | B46: 651.0629077 | C46: 45.01575035
A47: 30 | B47: 656.5797677 | C47: 45.02531987
A48: 31 | B48: 662.1008698 | C48: 45.0845711
A49: 32 | B49: 667.5926127 | C49: 45.1936836
A50: 33 | B50: 673.0204011 | C50: 45.3526986
A51: 34 | B51: 678.3487692 | C51: 45.56150606
A52: 35 | B52: 683.5415333 | C52: 45.81982858
A53: 36 | B53: 688.5619791 | C53: 46.12720205
A54: 37 | B54: 693.3730843 | C54: 46.48295329
A55: 38 | B55: 697.9377784 | C55: 46.8861751
A56: 39 | B56: 702.2192407 | C56: 47.33569891
A57: 40 | B57: 706.181238 | C57: 47.83006576
A58: 41 | B58: 709.7884978 | C58: 48.36749622
A59: 42 | B59: 713.0071181 | C59: 48.94586021
A60: 43 | B60: 715.805007 | C60: 49.56264773
A61: 44 | B61: 718.1523479 | C61: 50.21494181
A62: 45 | B62: 720.0220825 | C62: 50.89939504
A63: 46 | B63: 721.390401 | C63: 51.61221137
A64: 47 | B64: 722.2372301 | C64: 52.34913466
A65: 48 | B65: 722.5467037 | C65: 53.10544596
A66: 49 | B66: 722.3076036 | C66: 53.87597097
A67: 50 | B67: 721.5137536 | C67: 54.65509944
A68: 51 | B68: 720.1643519 | C68: 55.43681771
A69: 52 | B69: 718.2642262 | C69: 56.21475538
A70: 53 | B70: 715.823997 | C70: 56.98224674
A71: 54 | B71: 712.8601373 | C71: 57.73240659
A72: 55 | B72: 709.3949185 | C72: 58.45821999
A73: 56 | B73: 705.4562379 | C73: 59.15264423
A74: 57 | B74: 701.0773252 | C74: 59.80872085
A75: 58 | B75: 696.2963325 | C75: 60.41969475
A76: 59 | B76: 691.1558148 | C76: 60.9791368
A77: 60 | B77: 685.7021151 | C77: 61.48106602
A78: 61 | B78: 679.9846711 | C78: 61.92006683
A79: 62 | B79: 674.0552636 | C79: 62.2913974
A80: 63 | B80: 667.9672301 | C80: 62.5910846
A81: 64 | B81: 661.7746683 | C81: 62.81600228
A82: 65 | B82: 655.5316522 | C82: 62.9639298
A83: =A82+1 -> 66 | B83: =B82+($B$7-$B$8*B82)*B82-$B$9*B82*C82 -> 649.2914849 | C83: =C82-$B$13*C82+$B$14*B82*C82 -> 63.03358871
A84: 67 | B84: 643.1060073 | C84: 63.02465666
A85: 68 | B85: 637.024979 | C85: 62.93775836
A86: 69 | B86: 631.0955454 | C86: 62.77443461
A87: 70 | B87: 625.3617962 | C87: 62.53709132
A88: 71 | B88: 619.8644224 | C88: 62.228931
A89: 72 | B89: 614.6404684 | C89: 61.85387004
A90: 73 | B90: 609.7231758 | C90: 61.41644527
A91: 74 | B91: 605.1419127 | C91: 60.9217134
A92: 75 | B92: 600.922178 | C92: 60.37514709
A93: 76 | B93: 597.0856691 | C93: 59.78253094
A94: 77 | B94: 593.6504038 | C94: 59.14986042
A95: 78 | B95: 590.6308815 | C95: 58.48324627
A96: 79 | B96: 588.0382747 | C96: 57.78882651
A97: 80 | B97: 585.8806392 | C97: 57.07268744
A98: 81 | B98: 584.1631338 | C98: 56.34079459
A99: 82 | B99: 582.888241 | C99: 55.59893432
A100: 83 | B100: 582.0559834 | C100: 54.85266586
A101: 84 | B101: 581.6641284 | C101: 54.10728377
A102: 85 | B102: 581.7083784 | C102: 53.36779009
A103: 86 | B103: 582.1825441 | C103: 52.63887551
A104: 87 | B104: 583.0786972 | C104: 51.92490859
A105: 88 | B105: 584.3873033 | C105: 51.22993208
A106: 89 | B106: 586.0973344 | C106: 50.55766528
A107: 90 | B107: 588.1963608 | C107: 49.91151136
A108: 91 | B108: 590.6706235 | C108: 49.29456876
A109: 92 | B109: 593.5050894 | C109: 48.70964555
A110: 93 | B110: 596.6834893 | C110: 48.15927614
A111: 94 | B111: 600.1883419 | C111: 47.64573922
A112: 95 | B112: 604.0009647 | C112: 47.17107657
A113: 96 | B113: 608.1014752 | C113: 46.73711177
A114: 97 | B114: 612.468783 | C114: 46.34546856
A115: 98 | B115: 617.0805772 | C115: 45.99758819
A116: 99 | B116: 621.9133092 | C116: 45.69474538
A117: 100 | B117: 626.9421758 | C117: 45.43806254
A118: 101 | B118: 632.1411036 | C118: 45.22852197
A119: 102 | B119: 637.4827383 | C119: 45.06697567
A120: 103 | B120: 642.9384411 | C120: 44.95415265
A121: 104 | B121: 648.4782963 | C121: 44.89066337
A122: 105 | B122: 654.0711322 | C122: 44.87700131
A123: 106 | B123: 659.6845586 | C123: 44.91354135
A124: 107 | B124: 665.2850253 | C124: 45.00053492
A125: 108 | B125: 670.8379031 | C125: 45.13810178
A126: 109 | B126: 676.3075928 | C126: 45.32621846
A127: 110 | B127: 681.6576631 | C127: 45.5647032
A128: 111 | B128: 686.8510221 | C128: 45.8531976
A129: 112 | B129: 691.8501245 | C129: 46.19114504
A130: 113 | B130: 696.6172166 | C130: 46.57776608
A131: 114 | B131: 701.1146204 | C131: 47.01203124
A132: 115 | B132: 705.3050581 | C132: 47.49263166
A133: 116 | B133: 709.152016 | C133: 48.01794821
A134: 117 | B134: 712.6201463 | C134: 48.5860199
A135: 118 | B135: 715.6757038 | C135: 49.19451264
A136: 119 | B136: 718.2870114 | C136: 49.84068949
A137: 120 | B137: 720.4249499 | C137: 50.52138383
A138: 121 | B138: 722.0634604 | C138: 51.23297702
A139: 122 | B139: 723.1800509 | C139: 51.97138214
A140: 123 | B140: 723.7562933 | C140: 52.73203582
A141: 124 | B141: 723.7782964 | C141: 53.50989972
A142: 125 | B142: 723.2371399 | C142: 54.29947357
A143: 126 | B143: 722.1292528 | C143: 55.09482119
A144: 127 | B144: 720.4567193 | C144: 55.88961085
A145: 128 | B145: 718.2274979 | C145: 56.67717058
A146: 129 | B146: 715.455538 | C146: 57.45055888
A147: =A146+1 -> 130 | B147: =B146+($B$7-$B$8*B146)*B146-$B$9*B146*C146 -> 712.1607835 | C147: =C146-$B$13*C146+$B$14*B146*C146 -> 58.20265033
A148: 131 | B148: 708.3690556 | C148: 58.9262348
A149: 132 | B149: 704.1118105 | C149: 59.61412854
A150: 133 | B150: 699.4257727 | C150: 60.25929422
A151: 134 | B151: 694.3524515 | C151: 60.85496666
A152: 135 | B152: 688.9375501 | C152: 61.39478005
A153: 136 | B153: 683.2302843 | C153: 61.87289251
A154: 137 | B154: 677.2826312 | C154: 62.28410327
A155: 138 | B155: 671.1485301 | C155: 62.62395812
A156: 139 | B156: 664.8830609 | C156: 62.88883905
A157: 140 | B157: 658.5416259 | C157: 63.07603473
A158: 141 | B158: 652.1791583 | C158: 63.18378911
A159: 142 | B159: 645.8493808 | C159: 63.21132661
A160: 143 | B160: 639.6041333 | C160: 63.15885338
A161: 144 | B161: 633.4927832 | C161: 63.02753518
A162: 145 | B162: 627.5617304 | C162: 62.81945334
A163: 146 | B163: 621.8540121 | C163: 62.53754137
A164: 147 | B164: 616.4090077 | C164: 62.1855052
A165: 148 | B165: 611.262242 | C165: 61.76773063
A166: 149 | B166: 606.4452797 | C166: 61.28918195
A167: 150 | B167: 601.9857026 | C167: 60.75529532
A168: 151 | B168: 597.9071578 | C168: 60.17187075
A169: 152 | B169: 594.2294653 | C169: 59.544966
A170: 153 | B170: 590.9687734 | C170: 58.88079508
A171: 154 | B171: 588.1377476 | C171: 58.18563397
A172: 155 | B172: 585.7457847 | C172: 57.46573509
A173: 156 | B173: 583.7992384 | C173: 56.72725195
A174: 157 | B174: 582.3016507 | C174: 55.9761745
A175: 158 | B175: 581.2539788 | C175: 55.21827557
A176: 159 | B176: 580.6548133 | C176: 54.45906822
A177: 160 | B177: 580.5005819 | C177: 53.70377337
A178: 161 | B178: 580.7857359 | C178: 52.95729717
A179: 162 | B179: 581.5029165 | C179: 52.2242171
A180: 163 | B180: 582.6431005 | C180: 51.50877579
A181: 164 | B181: 584.1957239 | C181: 50.8148815
A182: 165 | B182: 586.1487844 | C182: 50.14611421
A183: 166 | B183: 588.4889236 | C183: 49.50573614
A184: 167 | B184: 591.2014895 | C184: 48.89670591
A185: 168 | B185: 594.2705815 | C185: 48.32169522
A186: 169 | B186: 597.6790792 | C186: 47.78310722
A187: 170 | B187: 601.4086576 | C187: 47.28309599
A188: 171 | B188: 605.4397901 | C188: 46.82358617
A189: 172 | B189: 609.7517419 | C189: 46.4062924
A190: 173 | B190: 614.3225569 | C190: 46.03273792
A191: 174 | B191: 619.129039 | C191: 45.70427184
A192: 175 | B192: 624.1467318 | C192: 45.42208488
A193: 176 | B193: 629.3498985 | C193: 45.18722301
A194: 177 | B194: 634.7115052 | C194: 45.00059886
A195: 178 | B195: 640.2032107 | C195: 44.86300058
A196: 179 | B196: 645.7953649 | C196: 44.77509791
A197: 180 | B197: 651.4570195 | C197: 44.73744532
A198: 181 | B198: 657.1559554 | C198: 44.75048198
A199: 182 | B199: 662.8587275 | C199: 44.81452847
A200: 183 | B200: 668.5307329 | C200: 44.92978004
A201: 184 | B201: 674.1363047 | C201: 45.09629639
A202: 185 | B202: 679.6388348 | C202: 45.31398798
A203: 186 | B203: 685.0009295 | C203: 45.58259874
... 165 more rows

Sheet Монте-Карло1
A2: Задача. Методом Монте-Карло найти площадь фигуры, ограниченной графиками функций
A7: x0 | B7: -5
A8: xn | B8: 15
A9: h | B9: 1
A10: n | B10: =(B8-B7)/B9 -> 20
A12: x | B12: y1 | C12: y2 | K12: Уточнение | N12: h= | O12: =B9/10 -> 0.1
A13: =B7 -> -5 | B13: =A13*(10-A13)/5 -> -15 | C13: =A13/3 -> -1.666666667 | K13: 8 | L13: =K13*(10-K13)/5 -> 3.2 | M13: =K13/3 -> 2.666666667
A14: =A13+$B$9 -> -4 | B14: =A14*(10-A14)/5 -> -11.2 | C14: =A14/3 -> -1.333333333 | K14: =K13+$O$12 -> 8.1 | L14: 3.078 | M14: =K14/3 -> 2.7
A15: =A14+$B$9 -> -3 | B15: -7.8 | C15: -1 | K15: 8.2 | L15: 2.952 | M15: 2.733333333
A16: -2 | B16: -4.8 | C16: -0.6666666667 | K16: 8.3 | L16: 2.822 | M16: 2.766666667 | N16: ширина
A17: -1 | B17: -2.2 | C17: -0.3333333333 | K17: 8.4 | L17: 2.688 | M17: 2.8
A18: 0 | B18: 0 | C18: 0 | K18: 8.5 | L18: 2.55 | M18: 2.833333333
A19: 1 | B19: 1.8 | C19: 0.3333333333 | K19: 8.6 | L19: 2.408 | M19: 2.866666667
A20: 2 | B20: 3.2 | C20: 0.6666666667 | K20: 8.7 | L20: 2.262 | M20: 2.9
A21: 3 | B21: 4.2 | C21: 1 | K21: 8.8 | L21: 2.112 | M21: 2.933333333
A22: 4 | B22: 4.8 | C22: 1.333333333 | K22: 8.9 | L22: 1.958 | M22: 2.966666667
A23: 5 | B23: 5 | C23: 1.666666667 | D23: высота | K23: 9 | L23: 1.8 | M23: 3
A24: 6 | B24: 4.8 | C24: 2
A25: 7 | B25: 4.2 | C25: 2.333333333
A26: 8 | B26: 3.2 | C26: 2.666666667
A27: 9 | B27: 1.8 | C27: 3
A28: 10 | B28: 0 | C28: 3.333333333
A29: 11 | B29: -2.2 | C29: 3.666666667
A30: 12 | B30: -4.8 | C30: 4
A31: 13 | B31: -7.8 | C31: 4.333333333
A32: 14 | B32: -11.2 | C32: 4.666666667
A33: =A32+$B$9 -> 15 | B33: -15 | C33: 5

Sheet Монте-Карло2
A4: x0 | B4: -5
A5: xn | B5: 15
A6: h | B6: 1 | E6: Ширина - 20
A7: n | B7: =(B5-B4)/B6 -> 20 | E7: Высота - 1 (2, но y > 0)
A9: x | B9: y1 | C9: y2
A10: =B4 -> -5 | B10: =SIN(A10) -> 0.9589242747 | C10: 0
A11: =A10+$B$6 -> -4 | B11: =SIN(A11) -> 0.7568024953 | C11: 0
A12: =A11+$B$6 -> -3 | B12: -0.1411200081 | C12: 0
A13: -2 | B13: -0.9092974268 | C13: 0
A14: -1 | B14: -0.8414709848 | C14: 0
A15: 0 | B15: 0 | C15: 0
A16: 1 | B16: 0.8414709848 | C16: 0
A17: 2 | B17: 0.9092974268 | C17: 0
A18: 3 | B18: 0.1411200081 | C18: 0
A19: 4 | B19: -0.7568024953 | C19: 0
A20: 5 | B20: -0.9589242747 | C20: 0
A21: 6 | B21: -0.2794154982 | C21: 0
A22: 7 | B22: 0.6569865987 | C22: 0
A23: =A22+$B$6 -> 8 | B23: 0.9893582466 | C23: 0
A24: 9 | B24: 0.4121184852 | C24: 0
A25: 10 | B25: -0.5440211109 | C25: 0
A26: 11 | B26: -0.9999902066 | C26: 0
A27: 12 | B27: -0.536572918 | C27: 0
A28: =A27+$B$6 -> 13 | B28: 0.4201670368 | C28: 0
A29: 14 | B29: 0.9906073557 | C29: 0
A30: 15 | B30: 0.6502878402 | C30: 0

Sheet Монте-Карло3
A4: x0 | B4: -5
A5: xn | B5: 15 | E5: Ширина | F5: 7
A6: h | B6: 1 | E6: Высота | F6: 8
A7: n | B7: =(B5-B4)/B6 -> 20
A9: x | B9: y1 | C9: y2
A10: =B4 -> -5 | B10: =A10*(8-A10)/2 -> -32.5 | C10: =A10/2 -> -2.5
A11: =A10+$B$6 -> -4 | B11: =A11*(8-A11)/2 -> -24 | C11: =A11/2 -> -2
A12: =A11+$B$6 -> -3 | B12: -16.5 | C12: -1.5
A13: -2 | B13: -10 | C13: -1
A14: -1 | B14: -4.5 | C14: -0.5
A15: 0 | B15: 0 | C15: 0
A16: 1 | B16: 3.5 | C16: 0.5
A17: 2 | B17: 6 | C17: 1
A18: 3 | B18: 7.5 | C18: 1.5
A19: 4 | B19: 8 | C19: 2
A20: 5 | B20: 7.5 | C20: 2.5
A21: 6 | B21: 6 | C21: 3
A22: 7 | B22: 3.5 | C22: 3.5
A23: 8 | B23: 0 | C23: 4
A24: 9 | B24: -4.5 | C24: 4.5
A25: 10 | B25: -10 | C25: 5
A26: 11 | B26: -16.5 | C26: 5.5
A27: 12 | B27: -24 | C27: 6
A28: 13 | B28: -32.5 | C28: 6.5
A29: =A28+$B$6 -> 14 | B29: -42 | C29: 7
A30: 15 | B30: -52.5 | C30: 7.5

Sheet Монте-Карло4
A4: x0 | B4: -5
A5: xn | B5: 15 | E5: Ширина | F5: 12
A6: h | B6: 1 | E6: Высота | F6: 6
A7: n | B7: =(B5-B4)/B6 -> 20
A9: x | B9: y1 | C9: y2
A10: =B4 -> -5 | B10: =(A10-6)^2/6 -> 20.16666667 | C10: 6
A11: =A10+$B$6 -> -4 | B11: =(A11-6)^2/6 -> 16.66666667 | C11: 6
A12: =A11+$B$6 -> -3 | B12: 13.5 | C12: 6
A13: -2 | B13: 10.66666667 | C13: 6
A14: -1 | B14: 8.166666667 | C14: 6
A15: 0 | B15: 6 | C15: 6
A16: 1 | B16: 4.166666667 | C16: 6
A17: 2 | B17: 2.666666667 | C17: 6
A18: 3 | B18: 1.5 | C18: 6
A19: 4 | B19: 0.6666666667 | C19: 6
A20: 5 | B20: 0.1666666667 | C20: 6
A21: 6 | B21: 0 | C21: 6
A22: 7 | B22: 0.1666666667 | C22: 6
A23: 8 | B23: 0.6666666667 | C23: 6
A24: 9 | B24: 1.5 | C24: 6
A25: 10 | B25: 2.666666667 | C25: 6
A26: 11 | B26: 4.166666667 | C26: 6
A27: 12 | B27: 6 | C27: 6
A28: 13 | B28: 8.166666667 | C28: 6
A29: 14 | B29: 10.66666667 | C29: 6
A30: =A29+$B$6 -> 15 | B30: 13.5 | C30: 6

Sheet Монте-Карло5
A4: x0 | B4: -5
A5: xn | B5: 15
A6: h | B6: 1 | E6: Ширина | F6: 10.2
A7: n | B7: =(B5-B4)/B6 -> 20 | E7: Высота | F7: 4
M8: Уточнение ширины
A9: x | B9: y1 | C9: y2 | M9: x | N9: y1 | O9: y2
A10: =B4 -> -5 | B10: =A10*(12-A10)/9 -> -9.444444444 | C10: =A10/5 -> -1 | M10: 10 | N10: =M10*(12-M10)/9 -> 2.222222222 | O10: =M10/5 -> 2
A11: =A10+$B$6 -> -4 | B11: =A11*(12-A11)/9 -> -7.111111111 | C11: =A11/5 -> -0.8 | M11: =M10+0.1 -> 10.1 | N11: =M11*(12-M11)/9 -> 2.132222222 | O11: =M11/5 -> 2.02
A12: =A11+$B$6 -> -3 | B12: -5 | C12: -0.6 | M12: 10.2 | N12: 2.04 | O12: 2.04
A13: -2 | B13: -3.111111111 | C13: -0.4 | M13: 10.3 | N13: 1.945555556 | O13: 2.06
A14: -1 | B14: -1.444444444 | C14: -0.2 | M14: 10.4 | N14: 1.848888889 | O14: 2.08
A15: 0 | B15: 0 | C15: 0 | M15: 10.5 | N15: 1.75 | O15: 2.1
A16: 1 | B16: 1.222222222 | C16: 0.2 | M16: 10.6 | N16: 1.648888889 | O16: 2.12
A17: 2 | B17: 2.222222222 | C17: 0.4 | M17: 10.7 | N17: 1.545555556 | O17: 2.14
A18: 3 | B18: 3 | C18: 0.6 | M18: 10.8 | N18: 1.44 | O18: 2.16
A19: 4 | B19: 3.555555556 | C19: 0.8 | M19: 10.9 | N19: 1.332222222 | O19: 2.18
A20: 5 | B20: 3.888888889 | C20: 1 | M20: 11 | N20: 1.222222222 | O20: 2.2
A21: 6 | B21: 4 | C21: 1.2
A22: 7 | B22: 3.888888889 | C22: 1.4
A23: 8 | B23: 3.555555556 | C23: 1.6
A24: 9 | B24: 3 | C24: 1.8
A25: 10 | B25: 2.222222222 | C25: 2
A26: 11 | B26: 1.222222222 | C26: 2.2
A27: =A26+$B$6 -> 12 | B27: 0 | C27: 2.4
A28: 13 | B28: -1.444444444 | C28: 2.6
A29: =A28+$B$6 -> 14 | B29: -3.111111111 | C29: 2.8
A30: 15 | B30: -5 | C30: 3

Sheet Монте-Карло6
A4: x0 | B4: -5
A5: xn | B5: 15
A6: h | B6: 1 | E6: Ширина | F6: 8
A7: n | B7: =(B5-B4)/B6 -> 20 | E7: Высота | F7: 4
A9: x | B9: y1 | C9: y2
A10: =B4 -> -5 | B10: =A10*(8-A10)/4 -> -16.25 | C10: =(8-A10)/8 -> 1.625
A11: =A10+$B$6 -> -4 | B11: =A11*(8-A11)/4 -> -12 | C11: =(8-A11)/8 -> 1.5
A12: =A11+$B$6 -> -3 | B12: -8.25 | C12: 1.375
A13: -2 | B13: -5 | C13: 1.25
A14: -1 | B14: -2.25 | C14: 1.125
A15: 0 | B15: 0 | C15: 1
A16: 1 | B16: 1.75 | C16: 0.875
A17: 2 | B17: 3 | C17: 0.75
A18: 3 | B18: 3.75 | C18: 0.625
A19: 4 | B19: 4 | C19: 0.5
A20: 5 | B20: 3.75 | C20: 0.375
A21: 6 | B21: 3 | C21: 0.25
A22: 7 | B22: 1.75 | C22: 0.125
A23: 8 | B23: 0 | C23: 0
A24: 9 | B24: -2.25 | C24: -0.125
A25: 10 | B25: -5 | C25: -0.25
A26: 11 | B26: -8.25 | C26: -0.375
A27: =A26+$B$6 -> 12 | B27: -12 | C27: -0.5
A28: 13 | B28: -16.25 | C28: -0.625
A29: =A28+$B$6 -> 14 | B29: -21 | C29: -0.75
A30: 15 | B30: -26.25 | C30: -0.875

Sheet Монте-Карло7
A4: x0 | B4: -5
A5: xn | B5: 15 | E5: Ширина | F5: 2,81-0,8=2,01 | G5: [0,8; 2,81]
A6: h | B6: 1 | E6: Высота | F6: 1
A7: n | B7: =(B5-B4)/B6 -> 20
M8: Уточнение ширины слева | Q8: Уточнение ширины справа
A9: x | B9: y1 | C9: y2 | M9: x | N9: y1 | O9: y2 | Q9: x | R9: y1 | S9: y2
A10: =B4 -> -5 | B10: =SIN(A10) -> 0.9589242747 | C10: =(A10-2)^2/2 -> 24.5 | M10: 0 | N10: =SIN(M10) -> 0 | O10: =(M10-2)^2/2 -> 2 | Q10: 2 | R10: =SIN(Q10) -> 0.9092974268 | S10: =(Q10-2)^2/2 -> 0
A11: =A10+$B$6 -> -4 | B11: =SIN(A11) -> 0.7568024953 | C11: =(A11-2)^2/2 -> 18 | M11: =M10+0.1 -> 0.1 | N11: =SIN(M11) -> 0.09983341665 | O11: =(M11-2)^2/2 -> 1.805 | Q11: =Q10+0.1 -> 2.1 | R11: =SIN(Q11) -> 0.8632093666 | S11: =(Q11-2)^2/2 -> 0.005
A12: =A11+$B$6 -> -3 | B12: -0.1411200081 | C12: 12.5 | M12: =M11+0.1 -> 0.2 | N12: 0.1986693308 | O12: 1.62 | Q12: =Q11+0.1 -> 2.2 | R12: 0.8084964038 | S12: 0.02
A13: -2 | B13: -0.9092974268 | C13: 8 | M13: 0.3 | N13: 0.2955202067 | O13: 1.445 | Q13: 2.3 | R13: 0.7457052122 | S13: 0.045
A14: -1 | B14: -0.8414709848 | C14: 4.5 | M14: 0.4 | N14: 0.3894183423 | O14: 1.28 | Q14: 2.4 | R14: 0.6754631806 | S14: 0.08
A15: 0 | B15: 0 | C15: 2 | M15: 0.5 | N15: 0.4794255386 | O15: 1.125 | Q15: 2.5 | R15: 0.5984721441 | S15: 0.125
A16: 1 | B16: 0.8414709848 | C16: 0.5 | M16: 0.6 | N16: 0.5646424734 | O16: 0.98 | Q16: 2.6 | R16: 0.5155013718 | S16: 0.18
A17: 2 | B17: 0.9092974268 | C17: 0 | M17: 0.7 | N17: 0.6442176872 | O17: 0.845 | Q17: 2.7 | R17: 0.4273798802 | S17: 0.245
A18: 3 | B18: 0.1411200081 | C18: 0.5 | M18: =M17+0.1 -> 0.8 | N18: 0.7173560909 | O18: 0.72 | Q18: 2.8 | R18: 0.3349881502 | S18: 0.32
A19: 4 | B19: -0.7568024953 | C19: 2 | M19: 0.9 | N19: 0.7833269096 | O19: 0.605 | Q19: 2.9 | R19: 0.2392493292 | S19: 0.405
A20: 5 | B20: -0.9589242747 | C20: 4.5 | M20: =M19+0.1 -> 1 | N20: 0.8414709848 | O20: 0.5 | Q20: 3 | R20: 0.1411200081 | S20: 0.5
A21: 6 | B21: -0.2794154982 | C21: 8
A22: 7 | B22: 0.6569865987 | C22: 12.5 | Q22: x | R22: y1 | S22: y2
A23: 8 | B23: 0.9893582466 | C23: 18 | Q23: 2.8 | R23: =SIN(Q23) -> 0.3349881502 | S23: =(Q23-2)^2/2 -> 0.32
A24: 9 | B24: 0.4121184852 | C24: 24.5 | Q24: =Q23+0.01 -> 2.81 | R24: =SIN(Q24) -> 0.3255493345 | S24: =(Q24-2)^2/2 -> 0.32805
A25: 10 | B25: -0.5440211109 | C25: 32 | Q25: =Q24+0.01 -> 2.82 | R25: 0.3160779642 | S25: 0.3362
A26: 11 | B26: -0.9999902066 | C26: 40.5 | Q26: 2.83 | R26: 0.3065749864 | S26: 0.34445
A27: =A26+$B$6 -> 12 | B27: -0.536572918 | C27: 50 | Q27: 2.84 | R27: 0.2970413513 | S27: 0.3528
A28: 13 | B28: 0.4201670368 | C28: 60.5 | Q28: 2.85 | R28: 0.2874780123 | S28: 0.36125
A29: =A28+$B$6 -> 14 | B29: 0.9906073557 | C29: 72 | Q29: 2.86 | R29: 0.2778859258 | S29: 0.3698
A30: 15 | B30: 0.6502878402 | C30: 84.5 | Q30: 2.87 | R30: 0.2682660509 | S30: 0.37845
Q31: 2.88 | R31: 0.2586193497 | S31: 0.3872
Q32: =Q31+0.01 -> 2.89 | R32: 0.2489467867 | S32: 0.39605
Q33: 2.9 | R33: 0.2392493292 | S33: 0.405

Sheet Раскрой
A8: Минимизация расходов | M8: Минимизация отходов
A9: Исходные данные
B10: Способы Заготовки | C10: 1 | D10: 2 | E10: 3 | F10: 4 | G10: 5 | H10: 6 | I10: 7 | J10: 8 | K10: Заказ | M10: Способы | N10: 1 | O10: 2 | P10: 3 | Q10: 4 | R10: 5 | S10: 6 | T10: 7 | U10: 8
B11: 2.3 | C11: 2 | D11: 1 | E11: 1 | F11: 1 | G11: 0 | H11: 0 | I11: 0 | J11: 0 | K11: 720 | M11: Бревна | N11: 20 | O11: 380 | P11: 300 | Q11: 0 | R11: 0 | S11: 0 | T11: 0 | U11: 0
B12: 2.1 | C12: 0 | D12: 0 | E12: 2 | F12: 1 | G12: 1 | H12: 3 | I12: 2 | J12: 0 | K12: 600
B13: 1.4 | C13: 1 | D13: 3 | E13: 0 | F13: 1 | G13: 3 | H13: 0 | I13: 1 | J13: 4 | K13: 900 | M13: 700 | N13: : максимальный расход
A14: Max= | B14: 6.5 | C14: =C11*$B$11+C12*$B$12+C13*$B$13 -> 6 | D14: 6.5 | E14: 6.5 | F14: 5.8 | G14: 6.3 | H14: 6.3 | I14: 5.6 | J14: 5.6 | M14: =SUM(N11:U11) -> 700 | N14: : общий расход
B15: Остатки | C15: =$B$14-C14 -> 0.5 | D15: =$B$14-D14 -> 0 | E15: 0 | F15: 0.7 | G15: 0.2 | H15: 0.2 | I15: 0.9 | J15: 0.9 | M15: =SUMPRODUCT($N$11:$U$11,C11:J11) -> 720 | N15: : заготовк по 2,3м
M16: =SUMPRODUCT($N$11:$U$11,C12:J12) -> 600 | N16: : заготовк по 2,1м
M17: 1160 | N17: : заготовк по 1,4м
A18: Расчет | M18: =SUMPRODUCT($N$11:$U$11,C15:J15) -> 10 | N18: :отходы
B19: Способы | C19: 1 | D19: 2 | E19: 3 | F19: 4 | G19: 5 | H19: 6 | I19: 7 | J19: 8
B20: Бревна | C20: 72 | D20: 276 | E20: 300 | F20: 0 | G20: 0 | H20: 0 | I20: 0 | J20: 0
B21: =SUM(C20:J20) -> 648 | C21: : общий расход
B22: =SUMPRODUCT($C$20:$J$20,C11:J11) -> 720 | C22: : заготовк по 2,3м
B23: =SUMPRODUCT($C$20:$J$20,C12:J12) -> 600 | C23: : заготовк по 2,1м
B24: =SUMPRODUCT($C$20:$J$20,C13:J13) -> 900 | C24: : заготовк по 1,4м
B25: =SUMPRODUCT($C$20:$J$20,C15:J15) -> 36 | C25: :отходы

Sheet РаспределениеИнвестиций
B1: 1 | C1: 2 | D1: 3 | E1: 4 | G1: 0 | H1: 0 | I1: 0 | J1: 0 | K1: 0 | L1: 0 | M1: 0 | N1: 0 | O1: 0
A2: 0 | B2: 0 | C2: 0 | D2: 0 | E2: 0 | G2: 50 | H2: 0 | I2: 50 | J2: =D2+E3 -> 28 | K2: =MAX(J2:J3) -> 28 | L2: 0 | M2: =C9+D10 -> 28 | N2: =MAX(M2:M3) -> 28 | O2: 0
A3: 50 | B3: 25 | C3: 26 | D3: 27 | E3: 28 | H3: 50 | I3: 0 | J3: =D3+E2 -> 27 | M3: =C10+D9 -> 26
A4: 100 | B4: 34 | C4: 33 | D4: 35 | E4: 55 | G4: 100 | H4: 0 | I4: 100 | J4: =D2+E4 -> 55 | K4: =MAX(J4:J6) -> 55 | L4: 0 50 | M4: =C9+D11 -> 55 | N4: =MAX(M4:M6) -> 55 | O4: 0
A5: 150 | B5: 46 | C5: 46 | D5: 45 | E5: 44 | H5: 50 | I5: 50 | J5: =D3+E3 -> 55 | M5: =C10+D10 -> 54
A6: 200 | B6: 57 | C6: 58 | D6: 56 | E6: 55 | H6: 100 | I6: 0 | J6: =D4+E2 -> 35 | M6: =C11+D9 -> 33
G7: 150 | H7: 0 | I7: 150 | J7: =D2+E5 -> 44 | K7: =MAX(J7:J10) -> 82 | L7: 50 | M7: =C9+D12 -> 82 | N7: =MAX(M7:M10) -> 82 | O7: 0
B8: 1 | C8: 2 | D8: 34 | H8: 50 | I8: 100 | J8: =D3+E4 -> 82 | M8: =C10+D11 -> 81
A9: 0 | B9: 0 | C9: 0 | D9: 0 | H9: 100 | I9: 50 | J9: =D4+E3 -> 63 | M9: =C11+D10 -> 61
A10: 50 | B10: 25 | C10: 26 | D10: =K2 -> 28 | H10: 150 | I10: 0 | J10: =D5 -> 45 | M10: =C12 -> 46
A11: 100 | B11: 34 | C11: 33 | D11: =K4 -> 55 | G11: 200 | H11: 0 | I11: 200 | J11: =E6 -> 55 | K11: =MAX(J11:J15) -> 90 | L11: 100 | M11: =D13 -> 90 | N11: =MAX(M11:M15) -> 108 | O11: 50 | P11: =C20 -> 108 | Q11: =MAX(P11:P15) -> 108 | R11: 0
A12: 150 | B12: 46 | C12: 46 | D12: =K7 -> 82 | H12: 50 | I12: 150 | J12: =D3+E5 -> 71 | M12: =C10+D12 -> 108 | P12: =B17+C19 -> 107
A13: 200 | B13: 57 | C13: 58 | D13: =K11 -> 90 | H13: 100 | I13: 100 | J13: =D4+E4 -> 90 | M13: =C11+D11 -> 88 | P13: =B18+C18 -> 89
H14: 150 | I14: 50 | J14: =D5+E3 -> 73 | M14: =C12+D10 -> 74 | P14: =B19+C17 -> 74
B15: 1 | C15: 234 | H15: 200 | I15: 0 | J15: =D6 -> 56 | M15: =C13 -> 58 | P15: =B20 -> 57
A16: 0 | B16: 0 | C16: 0 | H16: 3 | I16: 4 | K16: max(3;4) | L16: 3 | N16: max(2;34) | O16: 2 | Q16: max(1;234) | R16: 1
A17: 50 | B17: 25 | C17: 28 | H17: 2 | I17: 34
A18: 100 | B18: 34 | C18: 55 | H18: 1 | I18: 234 | M18: 1 | N18: 0
A19: 150 | B19: 46 | C19: 82 | M19: 2 | N19: 50
A20: 200 | B20: 57 | C20: 108 | K20: F | L20: =C3+D3+E4 -> 108 | M20: 3 | N20: 50
M21: 4 | N21: 100
